bitfinex/quotes_BTCUSD_20240607
["timestamp","ask_amount","ask_price","bid_price","bid_amount"]
[1717751545074,0.00273588,71109.0,71108.0,1.2940982]
[1717751545284,0.00273588,71109.0,71108.0,1.4960982]
[1717751545491,0.00273588,71109.0,71108.0,1.42068824]
[1717751545933,0.00273588,71109.0,71108.0,1.62268824]
[1717751546105,0.00273588,71109.0,71108.0,1.42068824]
[1717751546312,0.00273588,71109.0,71108.0,1.12887705]
[1717751546517,0.00273588,71109.0,71108.0,1.42067874]
[1717751546921,0.00273588,71109.0,71108.0,1.62267874]
[1717751547478,0.00273588,71109.0,71108.0,1.42067874]
[1717751549065,0.00273588,71109.0,71108.0,1.62267874]
[1717751549477,0.00273588,71109.0,71108.0,1.42067874]
[1717751549920,0.00273588,71109.0,71108.0,1.62267874]
[1717751550587,0.00273588,71109.0,71108.0,1.35227874]
[1717751550839,0.00273588,71109.0,71108.0,1.42067874]
[1717751551063,0.00273588,71109.0,71108.0,1.4960887]
[1717751552216,0.00273588,71109.0,71108.0,1.49609486]
[1717751552870,0.00273588,71109.0,71108.0,1.49609488]
[1717751553474,0.00273588,71109.0,71108.0,1.49609486]
[1717751555383,0.00273588,71109.0,71108.0,1.22769486]
[1717751555593,0.00273588,71109.0,71108.0,1.49609486]
[1717751555809,0.00273588,71109.0,71108.0,1.20429317]
[1717751556241,0.00273588,71109.0,71108.0,1.49609537]
[1717751557130,0.00273588,71109.0,71108.0,1.42769537]
[1717751557364,0.00273588,71109.0,71108.0,1.29409537]
[1717751557573,0.00273588,71109.0,71108.0,1.49609537]
[1717751558421,0.00273588,71109.0,71108.0,1.62271972]
[1717751559262,0.00273588,71109.0,71108.0,1.90398172]
[1717751560104,0.00273588,71109.0,71108.0,1.77735737]
[1717751560575,0.00273588,71109.0,71108.0,1.90397725]
[1717751560996,0.00273588,71109.0,71108.0,2.14947725]
[1717751562502,0.00273588,71109.0,71108.0,2.17057725]
[1717751562715,0.00273588,71109.0,71108.0,2.04395737]
[1717751563159,0.00273588,71109.0,71108.0,2.17057734]
[1717751563567,0.00273588,71109.0,71108.0,1.96857734]
[1717751563829,0.00273588,71109.0,71108.0,2.17057734]
[1717751564476,0.00273588,71109.0,71108.0,2.00787734]
[1717751565589,0.00273588,71109.0,71108.0,2.00787048]
[1717751565738,0.00273588,71109.0,71108.0,1.67925066]
[1717751565955,0.00273588,71109.0,71108.0,1.88125066]
[1717751566162,0.00273588,71109.0,71108.0,2.04055066]
[1717751567203,0.00173588,71109.0,71108.0,2.03355066]
[1717751567454,0.00173588,71109.0,71108.0,2.04755066]
[1717751567656,0.00173588,71109.0,71108.0,2.03955066]
[1717751567874,0.00073588,71109.0,71108.0,2.30681266]
[1717751568077,0.00073588,71109.0,71108.0,2.02555066]
[1717751568319,0.00173588,71109.0,71108.0,2.32081266]
[1717751568525,0.00173588,71109.0,71108.0,2.33481266]
[1717751568526,0.00273588,71109.0,71108.0,2.33481266]
[1717751568749,0.00273588,71109.0,71108.0,2.05355066]
[1717751569549,0.00273588,71109.0,71108.0,2.33481266]
[1717751570734,0.00273588,71109.0,71108.0,2.13281266]
[1717751571122,0.00273588,71109.0,71108.0,2.33479215]
[1717751571329,0.00273588,71109.0,71108.0,2.13279215]
[1717751571531,0.00273588,71109.0,71108.0,2.33479215]
[1717751574996,0.17259628,71133.0,71108.0,2.33479215]
[1717751574997,0.1614,71126.0,71125.0,0.140597]
[1717751575205,0.1614,71126.0,71125.0,0.71413842]
[1717751575428,0.1614,71126.0,71125.0,1.17850774]
[1717751575623,0.2445,71126.0,71125.0,1.17850774]
[1717751576336,0.2455,71126.0,71125.0,1.38538264]
[1717751577657,0.2455,71126.0,71125.0,1.45860257]
[1717751577658,0.2465,71126.0,71125.0,1.45860257]
[1717751577872,0.2465,71126.0,71125.0,1.39538264]
[1717751578960,0.2465,71126.0,71125.0,1.45859396]
[1717751579372,0.2465,71126.0,71125.0,1.14694474]
[1717751579573,0.2465,71126.0,71125.0,1.45856738]
[1717751580238,0.2465,71126.0,71125.0,1.44424709]
[1717751580455,0.2465,71126.0,71125.0,1.31263577]
[1717751580661,0.2465,71126.0,71125.0,1.38103577]
[1717751582209,0.2465,71126.0,71125.0,1.29123357]
[1717751582448,0.2465,71126.0,71125.0,1.38097811]
[1717751583321,0.2465,71126.0,71125.0,1.64615893]
[1717751583792,0.2465,71126.0,71125.0,1.44515893]
[1717751584007,0.2465,71126.0,71125.0,1.44415893]
[1717751585280,0.2465,71126.0,71125.0,1.13253629]
[1717751585916,0.2465,71126.0,71125.0,1.33453629]
[1717751586338,0.2465,71126.0,71125.0,1.13253629]
[1717751587390,0.2465,71126.0,71125.0,1.06935547]
[1717751589134,0.2465,71126.0,71125.0,1.07135547]
[1717751589307,0.2465,71126.0,71125.0,1.06935547]
[1717751590273,0.2465,71126.0,71125.0,1.08657381]
[1717751591843,0.2465,71126.0,71125.0,1.28857381]
[1717751592249,0.00286,71126.0,71125.0,1.28857381]
[1717751593405,0.00286,71126.0,71125.0,1.08857381]
[1717751593637,0.00286,71126.0,71125.0,1.08657381]
[1717751593842,0.23946,71126.0,71125.0,1.08657381]
[1717751596555,0.23946,71126.0,71125.0,1.1497305]
[1717751596784,0.23946,71126.0,71125.0,1.39818266]
[1717751596998,0.23946,71126.0,71125.0,1.46133044]
[1717751597611,0.00286,71126.0,71125.0,1.46133044]
[1717751600375,0.00286,71126.0,71125.0,1.39293044]
[1717751600573,0.00286,71126.0,71125.0,1.46133044]
[1717751602275,0.00286,71126.0,71125.0,1.39818266]
[1717751603838,0.00286,71126.0,71125.0,1.4613429]
[1717751604258,0.00286,71126.0,71125.0,1.3929429]
[1717751604493,0.00286,71126.0,71125.0,1.67937766]
[1717751606426,0.00286,71126.0,71125.0,1.39818266]
[1717751608221,0.00286,71126.0,71125.0,1.24657265]
[1717751608445,0.00286,71126.0,71125.0,0.91393875]
[1717751608446,0.23506,71126.0,71125.0,0.91393875]
[1717751608925,0.23506,71126.0,71125.0,0.85075488]
[1717751609336,0.23506,71126.0,71125.0,0.91393875]
[1717751609747,0.23506,71126.0,71125.0,0.85075488]
[1717751611114,0.23506,71126.0,71125.0,1.22555723]
[1717751611334,0.23506,71126.0,71125.0,0.91393875]
[1717751611954,0.23506,71126.0,71125.0,1.22556127]
[1717751612360,0.23506,71126.0,71125.0,0.8811824]
[1717751612633,0.23506,71126.0,71125.0,1.01280332]
[1717751612864,0.23506,71126.0,71125.0,0.68010768]
[1717751613103,0.23506,71126.0,71125.0,0.63795988]
[1717751614236,0.23506,71126.0,71125.0,0.7011808]
[1717751615407,0.23506,71126.0,71125.0,1.01281183]
[1717751616219,0.15526,71126.0,71125.0,1.31499483]
[1717751616431,0.00286,71126.0,71125.0,1.33799483]
[1717751616644,0.00286,71126.0,71125.0,1.25378591]
[1717751617297,0.00286,71126.0,71125.0,1.35904706]
[1717751619290,0.00286,71126.0,71125.0,1.25378591]
[1717751619494,0.00286,71126.0,71125.0,1.67939984]
[1717751620336,0.00286,71126.0,71125.0,1.67937383]
[1717751624555,0.00286,71126.0,71125.0,1.1853599]
[1717751624775,0.00286,71126.0,71125.0,1.2537599]
[1717751627873,0.00286,71126.0,71125.0,1.2307599]
[1717751628081,0.00286,71126.0,71125.0,0.9495649]
[1717751628082,0.25066,71126.0,71125.0,0.9495649]
[1717751628291,0.25066,71126.0,71125.0,1.05502249]
[1717751628506,0.25066,71126.0,71125.0,1.03393901]
[1717751628986,0.25066,71126.0,71125.0,1.01672067]
[1717751630030,0.25066,71126.0,71125.0,1.01674492]
[1717751630236,0.25066,71126.0,71125.0,0.93237923]
[1717751632146,0.25066,71126.0,71125.0,0.93238968]
[1717751636221,0.25066,71126.0,71125.0,0.93238954]
[1717751636486,0.00286,71126.0,71125.0,1.29188454]
[1717751637318,0.00286,71126.0,71125.0,1.37622913]
[1717751637973,0.00286,71126.0,71125.0,1.29188454]
[1717751638591,0.00286,71126.0,71125.0,1.21358454]
[1717751638851,0.25016,71126.0,71125.0,1.21358454]
[1717751641252,0.25016,71126.0,71125.0,1.29792748]
[1717751642755,0.25016,71126.0,71125.0,1.22952748]
[1717751642979,0.25016,71126.0,71125.0,1.29792748]
[1717751649168,0.25016,71126.0,71125.0,1.21358454]
[1717751650325,0.00286,71126.0,71125.0,1.21358454]
[1717751650554,0.00286,71126.0,71125.0,1.63919847]
[1717751650758,0.00286,71126.0,71125.0,1.67049847]
[1717751650980,0.00286,71126.0,71125.0,1.84433323]
[1717751655968,0.00286,71126.0,71125.0,1.73889847]
[1717751656797,0.00286,71126.0,71125.0,2.10489847]
[1717751657004,0.00286,71126.0,71125.0,1.90289847]
[1717751658773,0.00286,71126.0,71125.0,1.90149847]
[1717751659937,0.00286,71126.0,71125.0,2.10349847]
[1717751660410,0.00286,71126.0,71125.0,1.90147581]
[1717751661268,0.00286,71126.0,71125.0,1.90347581]
[1717751661703,0.00286,71126.0,71125.0,1.90147581]
[1717751666451,0.00286,71126.0,71125.0,1.73747581]
[1717751666723,0.00286,71126.0,71125.0,1.66077581]
[1717751669410,0.00286,71126.0,71125.0,1.36901478]
[1717751669653,0.00286,71126.0,71125.0,1.66075374]
[1717751676255,0.00286,71126.0,71125.0,1.36901478]
[1717751676473,0.00286,71126.0,71125.0,1.66075292]
[1717751678554,0.00286,71126.0,71125.0,1.59235292]
[1717751678764,0.00286,71126.0,71125.0,1.66075292]
[1717751684741,0.00286,71126.0,71125.0,1.59235292]
[1717751684962,0.00286,71126.0,71125.0,1.66075292]
[1717751685620,0.00286,71126.0,71125.0,1.49333399]
[1717751685835,0.24436,71126.0,71125.0,1.21213899]
[1717751686290,0.24436,71126.0,71125.0,1.2965116]
[1717751687189,0.24436,71126.0,71125.0,0.9469166]
[1717751687401,0.24436,71126.0,71125.0,1.0153166]
[1717751687824,0.24436,71126.0,71125.0,1.0162626]
[1717751689549,0.24436,71126.0,71125.0,0.93188999]
[1717751695255,0.24436,71126.0,71125.0,0.9319129]
[1717751695667,0.24436,71126.0,71125.0,0.8635129]
[1717751695875,0.24436,71126.0,71125.0,0.9319129]
[1717751696534,0.26436,71126.0,71125.0,0.93219409]
[1717751697415,0.24436,71126.0,71125.0,0.93219409]
[1717751700003,0.24436,71126.0,71125.0,1.01654852]
[1717751700220,0.24436,71126.0,71125.0,0.93219409]
[1717751700828,0.26436,71126.0,71125.0,0.93219409]
[1717751701519,0.24436,71126.0,71125.0,0.93219409]
[1717751701754,0.24436,71126.0,71125.0,0.93219169]
[1717751701955,0.26436,71126.0,71125.0,0.93219169]
[1717751702184,0.24436,71126.0,71125.0,0.93219169]
[1717751703329,0.24436,71126.0,71125.0,0.62056233]
[1717751703556,0.24436,71126.0,71125.0,0.93219162]
[1717751706374,0.24436,71126.0,71125.0,1.01653422]
[1717751709812,0.00286,71126.0,71125.0,1.25143422]
[1717751711760,0.00286,71126.0,71125.0,1.25142996]
[1717751713382,0.00286,71126.0,71125.0,1.53262496]
[1717751713595,0.00286,71126.0,71125.0,1.44828169]
[1717751713803,0.00286,71126.0,71125.0,1.53262654]
[1717751714882,0.00286,71126.0,71125.0,1.54404547]
[1717751715060,0.00286,71126.0,71125.0,1.70964547]
[1717751715265,0.00286,71126.0,71125.0,1.62530062]
[1717751716064,0.00286,71126.0,71125.0,1.70964612]
[1717751716436,0.00286,71126.0,71125.0,1.62530062]
[1717751717722,0.00286,71126.0,71125.0,1.45970062]
[1717751718154,0.00286,71126.0,71125.0,1.38080062]
[1717751719699,0.06266,71132.0,71131.0,0.140585]
[1717751719843,0.06266,71132.0,71131.0,0.45342752]
[1717751720044,0.08266,71132.0,71131.0,0.45342752]
[1717751720573,0.06266,71132.0,71131.0,0.45342752]
[1717751720774,0.06266,71132.0,71131.0,0.49560272]
[1717751720775,0.08266,71132.0,71131.0,0.49560272]
[1717751721187,0.06266,71132.0,71131.0,0.45642752]
[1717751721408,0.08266,71132.0,71131.0,0.49860334]
[1717751721633,0.06266,71132.0,71131.0,0.50160334]
[1717751722286,0.08266,71132.0,71131.0,0.36101834]
[1717751722715,0.08266,71132.0,71131.0,0.50160334]
[1717751722925,0.06266,71132.0,71131.0,0.50160334]
[1717751723131,0.06266,71132.0,71131.0,0.43832314]
[1717751723339,0.08266,71132.0,71131.0,0.43832314]
[1717751723926,0.06266,71132.0,71131.0,0.43832314]
[1717751724154,0.08266,71132.0,71131.0,0.43832314]
[1717751724554,0.08266,71132.0,71131.0,0.146585]
[1717751724756,0.08266,71132.0,71131.0,0.43833808]
[1717751725135,0.06266,71132.0,71131.0,0.43833808]
[1717751727218,0.08266,71132.0,71131.0,0.43833808]
[1717751727430,0.08266,71132.0,71131.0,0.45944276]
[1717751728200,0.06266,71132.0,71131.0,0.45944276]
[1717751728403,0.06266,71132.0,71131.0,0.50161858]
[1717751728818,0.06266,71132.0,71131.0,0.36103358]
[1717751729628,0.06266,71132.0,71131.0,0.3399289]
[1717751730132,0.08266,71132.0,71131.0,0.36103358]
[1717751730778,0.06266,71132.0,71131.0,0.36103358]
[1717751731219,0.08266,71132.0,71131.0,0.36104937]
[1717751731553,0.08266,71132.0,71131.0,0.33994469]
[1717751732363,0.08266,71132.0,71131.0,0.36104937]
[1717751732752,0.06266,71132.0,71131.0,0.36104937]
[1717751733632,0.08266,71132.0,71131.0,0.36104937]
[1717751733986,0.06266,71132.0,71131.0,0.36104937]
[1717751734399,0.08266,71132.0,71131.0,0.36104937]
[1717751734777,0.06266,71132.0,71131.0,0.36104937]
[1717751734979,0.08266,71132.0,71131.0,0.36104937]
[1717751736898,0.02,71132.0,71131.0,0.36104937]
[1717751737106,0.3281,71132.0,71131.0,0.33994469]
[1717751737328,0.3281,71132.0,71131.0,0.29775308]
[1717751739573,0.3081,71132.0,71131.0,0.29775308]
[1717751740214,0.3281,71132.0,71131.0,0.29775308]
[1717751742523,0.3281,71132.0,71131.0,0.33994469]
[1717751743398,0.3281,71132.0,71131.0,0.33994945]
[1717751743811,0.3081,71132.0,71131.0,0.33994945]
[1717751745081,0.30734,71132.0,71131.0,0.33994945]
[1717751745517,0.477923,71132.0,71131.0,0.33994945]
[1717751745724,0.69074193,71132.0,71131.0,0.006]
[1717751745935,0.97190893,71132.0,71131.0,0.006]
[1717751746797,0.33084,71120.0,71119.0,0.0364188]
[1717751747020,0.33084,71120.0,71119.0,0.29179801]
[1717751747866,0.32954883,71120.0,71119.0,0.29179801]
[1717751748923,0.33054883,71120.0,71119.0,0.31779801]
[1717751750889,0.001,71120.0,71119.0,0.026]
[1717751751098,0.001,71120.0,71119.0,0.09822824]
[1717751751314,0.001,71120.0,71119.0,0.3900238]
[1717751753028,0.001,71120.0,71119.0,0.3909698]
[1717751753495,0.001,71120.0,71119.0,0.09917424]
[1717751753867,0.001,71120.0,71119.0,0.39097054]
[1717751754073,0.00079477,71120.0,71119.0,0.53157954]
[1717751754321,0.00079477,71120.0,71119.0,0.23978324]
[1717751755541,0.00079477,71120.0,71119.0,0.53157553]
[1717751756413,0.00079477,71120.0,71119.0,0.60817553]
[1717751758222,0.00079477,71120.0,71119.0,0.75388563]
[1717751758347,0.00079477,71120.0,71119.0,0.91328563]
[1717751758566,0.00079477,71120.0,71119.0,1.26903585]
[1717751758779,0.00079477,71120.0,71119.0,1.24793082]
[1717751758992,0.00079477,71120.0,71119.0,1.31112815]
[1717751759387,0.00079477,71120.0,71119.0,1.24793082]
[1717751760665,0.00079477,71120.0,71119.0,1.31633082]
[1717751760873,0.00079477,71120.0,71119.0,1.06788302]
[1717751761109,0.00079477,71120.0,71119.0,1.37823372]
[1717751761323,0.00079477,71120.0,71119.0,1.06659185]
[1717751762153,0.00079477,71120.0,71119.0,1.06788302]
[1717751762826,0.00079477,71120.0,71119.0,1.37823428]
[1717751763502,0.00079477,71120.0,71119.0,1.06788302]
[1717751763935,0.00079477,71120.0,71119.0,1.37823295]
[1717751764163,0.00079477,71120.0,71119.0,1.37952412]
[1717751764337,0.00079477,71120.0,71119.0,1.31632673]
[1717751764611,0.00079477,71120.0,71119.0,1.38592438]
[1717751764822,0.00079477,71120.0,71119.0,1.31752438]
[1717751765027,0.00079477,71120.0,71119.0,1.38463321]
[1717751765204,0.00079477,71120.0,71119.0,1.31240497]
[1717751765458,0.00079477,71120.0,71119.0,1.00076387]
[1717751765668,0.00079477,71120.0,71119.0,0.93756466]
[1717751766166,0.00079477,71120.0,71119.0,0.93885583]
[1717751766376,0.00079477,71120.0,71119.0,1.31369888]
[1717751767450,0.00079477,71120.0,71119.0,1.25049967]
[1717751768303,0.00079477,71120.0,71119.0,1.31370492]
[1717751770682,0.00079477,71120.0,71119.0,1.25049967]
[1717751770923,0.00079477,71120.0,71119.0,1.31241614]
[1717751771371,0.00079477,71120.0,71119.0,1.2492085]
[1717751772334,0.00079477,71120.0,71119.0,1.24920724]
[1717751772752,0.00079477,71120.0,71119.0,1.09440724]
[1717751773198,0.00079477,71120.0,71119.0,1.09569841]
[1717751773692,0.00079477,71120.0,71119.0,1.17997747]
[1717751774961,0.00079477,71120.0,71119.0,1.33477747]
[1717751775178,0.00079477,71120.0,71119.0,0.93885583]
[1717751775393,0.00079477,71120.0,71119.0,1.33477469]
[1717751776493,0.00079477,71120.0,71119.0,1.33348352]
[1717751776629,0.00079477,71120.0,71119.0,1.33477469]
[1717751776851,0.00079477,71120.0,71119.0,1.63785269]
[1717751777058,0.00079477,71120.0,71119.0,1.65356955]
[1717751778329,0.00079477,71120.0,71119.0,1.93478755]
[1717751782835,0.00079477,71120.0,71119.0,1.62315183]
[1717751783037,0.00079477,71120.0,71119.0,2.13676857]
[1717751784745,0.00079477,71120.0,71119.0,2.06836857]
[1717751784983,0.00079477,71120.0,71119.0,2.13676857]
[1717751787404,0.00165477,71120.0,71119.0,2.13676857]
[1717751791600,0.00086,71120.0,71119.0,2.12376857]
[1717751791810,0.00086,71120.0,71119.0,2.11076857]
[1717751792011,0.00186,71120.0,71119.0,2.12476857]
[1717751792182,0.00186,71120.0,71119.0,2.13876857]
[1717751794028,0.00186,71120.0,71119.0,2.13870619]
[1717751797691,0.00186,71120.0,71119.0,2.07030619]
[1717751797901,0.00186,71120.0,71119.0,2.13870619]
[1717751799470,0.00186,71120.0,71119.0,2.13868473]
[1717751799686,0.00186,71120.0,71119.0,2.41990273]
[1717751802313,0.00186,71120.0,71119.0,2.54626524]
[1717751804719,0.00186,71120.0,71119.0,2.34297407]
[1717751805123,0.00186,71120.0,71119.0,2.34299544]
[1717751806198,0.00186,71120.0,71119.0,2.27788661]
[1717751806401,0.00186,71120.0,71119.0,2.54628661]
[1717751815360,0.00186,71120.0,71119.0,2.41990044]
[1717751818356,0.00186,71120.0,71119.0,2.4866172]
[1717751819187,0.00186,71120.0,71119.0,2.28332603]
[1717751819565,0.00186,71120.0,71119.0,2.4866172]
[1717751821238,0.00186,71120.0,71119.0,2.4182172]
[1717751821460,0.00186,71120.0,71119.0,2.3333172]
[1717751821664,0.00186,71120.0,71119.0,2.54226384]
[1717751822295,0.00186,71120.0,71119.0,2.6881184]
[1717751822519,0.00186,71120.0,71119.0,2.4881184]
[1717751822723,0.00186,71120.0,71119.0,2.6881184]
[1717751823883,0.00186,71120.0,71119.0,2.54226384]
[1717751824098,0.00186,71120.0,71119.0,2.68812399]
[1717751824511,0.00186,71120.0,71119.0,2.63917735]
[1717751826598,0.00186,71120.0,71119.0,2.43588618]
[1717751826795,0.00186,71120.0,71119.0,2.63917735]
[1717751827260,0.00186,71120.0,71119.0,2.57077735]
[1717751827433,0.00186,71120.0,71119.0,2.63917735]
[1717751832706,0.00186,71120.0,71119.0,2.63277891]
[1717751833805,0.00186,71120.0,71119.0,2.81939599]
[1717751834240,0.00186,71120.0,71119.0,2.81964394]
[1717751835244,0.00186,71120.0,71119.0,2.61635277]
[1717751835864,0.00186,71120.0,71119.0,2.81964394]
[1717751836091,0.00186,71120.0,71119.0,2.52791403]
[1717751836297,0.00186,71120.0,71119.0,2.3410408]
[1717751836520,0.00186,71120.0,71119.0,2.63275726]
[1717751837380,0.00186,71120.0,71119.0,2.81962598]
[1717751839190,0.00186,71120.0,71119.0,2.61633481]
[1717751839405,0.00186,71120.0,71119.0,2.81962598]
[1717751839703,0.00186,71120.0,71119.0,2.61633481]
[1717751840130,0.00186,71120.0,71119.0,2.6183316]
[1717751840338,0.00186,71120.0,71119.0,2.6163316]
[1717751841475,0.00186,71120.0,71119.0,2.81962277]
[1717751841714,0.00186,71120.0,71119.0,2.52790631]
[1717751841936,0.00186,71120.0,71119.0,2.61632906]
[1717751842179,0.00186,71120.0,71119.0,2.81962023]
[1717751843258,0.00186,71120.0,71119.0,2.61762023]
[1717751843464,0.00186,71120.0,71119.0,2.61962023]
[1717751843632,0.00186,71120.0,71119.0,2.86856687]
[1717751843834,0.00186,71120.0,71119.0,2.52169862]
[1717751844397,0.00186,71120.0,71119.0,2.47275198]
[1717751847674,0.00186,71120.0,71119.0,2.47274807]
[1717751848438,0.00186,71120.0,71119.0,2.65959926]
[1717751849432,0.00186,71120.0,71119.0,2.45959926]
[1717751849685,0.00186,71120.0,71119.0,2.5318275]
[1717751849892,0.00186,71120.0,71119.0,2.7318275]
[1717751850103,0.00186,71120.0,71119.0,2.5318275]
[1717751850324,0.00186,71120.0,71119.0,2.5298275]
[1717751850763,0.00186,71120.0,71119.0,2.5318275]
[1717751851389,0.00186,71120.0,71119.0,2.53182201]
[1717751851560,0.00186,71120.0,71119.0,2.52982201]
[1717751854936,0.00186,71120.0,71119.0,2.72982201]
[1717751855304,0.00186,71120.0,71119.0,2.52982201]
[1717751855651,0.00186,71120.0,71119.0,2.73182201]
[1717751856020,0.00186,71120.0,71119.0,2.52982201]
[1717751856999,0.00186,71120.0,71119.0,2.44712201]
[1717751857685,0.00186,71120.0,71119.0,2.37872201]
[1717751857895,0.24526,71120.0,71119.0,2.19058168]
[1717751858043,0.24526,71120.0,71119.0,2.25898168]
[1717751858438,0.24526,71120.0,71119.0,2.17040492]
[1717751858638,0.24526,71120.0,71119.0,2.19226492]
[1717751859633,0.24526,71120.0,71119.0,2.31880885]
[1717751860293,0.24526,71120.0,71119.0,2.03759085]
[1717751860712,0.24526,71120.0,71119.0,1.96919085]
[1717751860923,0.24526,71120.0,71119.0,2.03759085]
[1717751861590,0.25576883,71120.0,71119.0,1.14524768]
[1717751861798,0.25576883,71120.0,71119.0,0.91870375]
[1717751862431,0.25576883,71120.0,71119.0,0.69150562]
[1717751862636,0.25576883,71120.0,71119.0,0.63528614]
[1717751862843,0.25576883,71120.0,71119.0,0.6353192]
[1717751863252,0.25576883,71120.0,71119.0,0.6493192]
[1717751863459,0.25576883,71120.0,71119.0,0.6353192]
[1717751863660,0.25476883,71120.0,71119.0,0.57915822]
[1717751863865,0.25476883,71120.0,71119.0,0.59315822]
[1717751864277,0.25476883,71120.0,71119.0,0.60715822]
[1717751864492,0.25476883,71120.0,71119.0,0.60715653]
[1717751865911,0.25476883,71120.0,71119.0,0.31544652]
[1717751867559,0.25476883,71120.0,71119.0,0.32159337]
[1717751868943,0.25476883,71120.0,71119.0,0.32159444]
[1717751873391,0.25476883,71120.0,71119.0,0.38999444]
[1717751885973,0.25476883,71120.0,71119.0,0.24410185]
[1717751886178,0.25476883,71120.0,71119.0,0.68178373]
[1717751887033,0.25476883,71120.0,71119.0,0.61338373]
[1717751887368,0.23606,71120.0,71119.0,0.68178373]
[1717751887968,0.25476883,71120.0,71119.0,0.68178373]
[1717751888847,0.23606,71120.0,71119.0,0.68178373]
[1717751895529,0.25476883,71120.0,71119.0,0.68178253]
[1717751896387,0.23606,71120.0,71119.0,0.68178253]
[1717751897930,0.00086,71120.0,71119.0,0.68178253]
[1717751898093,0.00086,71120.0,71119.0,1.11562877]
[1717751899094,0.00086,71120.0,71119.0,1.17876215]
[1717751899296,0.00086,71120.0,71119.0,1.51271894]
[1717751899519,0.00086,71120.0,71119.0,1.96135587]
[1717751899762,0.00086,71120.0,71119.0,2.11825587]
[1717751900281,0.00086,71120.0,71119.0,2.03407803]
[1717751900485,0.00086,71120.0,71119.0,2.00607803]
[1717751900834,0.00086,71120.0,71119.0,2.02007803]
[1717751901040,0.00086,71120.0,71119.0,2.12530033]
[1717751901241,0.00086,71120.0,71119.0,2.03407803]
[1717751901440,0.00086,71120.0,71119.0,2.13930033]
[1717751902252,0.00086,71120.0,71119.0,2.03407803]
[1717751903703,0.00086,71120.0,71119.0,1.96438241]
[1717751903908,0.00086,71120.0,71119.0,2.03278241]
[1717751904302,0.00086,71120.0,71119.0,1.57656463]
[1717751904501,0.00086,71120.0,71119.0,2.03276353]
[1717751904897,0.00086,71120.0,71119.0,2.0340547]
[1717751905576,0.00086,71120.0,71119.0,2.03276353]
[1717751905966,0.00086,71120.0,71119.0,2.0340547]
[1717751906377,0.00086,71120.0,71119.0,1.96436353]
[1717751906626,0.00086,71120.0,71119.0,2.03276353]
[1717751907083,0.00086,71120.0,71119.0,2.0340547]
[1717751907281,0.00086,71120.0,71119.0,2.03276353]
[1717751910447,0.00086,71120.0,71119.0,1.87586353]
[1717751920232,0.00086,71120.0,71119.0,1.87585625]
[1717751920434,0.00086,71120.0,71119.0,1.96011746]
[1717751921221,0.00086,71120.0,71119.0,1.87585625]
[1717751921452,0.00086,71120.0,71119.0,1.98118044]
[1717751922369,0.00086,71120.0,71119.0,1.87585625]
[1717751925242,0.00086,71120.0,71119.0,1.80745625]
[1717751925456,0.00086,71120.0,71119.0,1.87585625]
[1717751926575,0.00086,71120.0,71119.0,1.98115069]
[1717751928764,0.00086,71120.0,71119.0,1.87581757]
[1717751930225,0.00086,71120.0,71119.0,1.981162]
[1717751930901,0.01856883,71125.0,71124.0,0.140599]
[1717751931125,0.01856883,71125.0,71124.0,0.70982734]
[1717751931331,0.01856883,71125.0,71124.0,1.02760031]
[1717751931961,0.01856883,71125.0,71124.0,0.67387783]
[1717751932394,0.01856883,71125.0,71124.0,0.7299813]
[1717751932593,0.01856883,71125.0,71124.0,1.0556015]
[1717751933021,0.01856883,71125.0,71124.0,1.07667094]
[1717751933225,0.01856883,71125.0,71124.0,0.78492118]
[1717751933674,0.26416883,71126.0,71125.0,0.140597]
[1717751933883,0.26416883,71126.0,71125.0,0.97411484]
[1717751934088,0.26416883,71126.0,71125.0,0.98026877]
[1717751934289,0.26416883,71126.0,71125.0,0.95920571]
[1717751934527,0.26416883,71126.0,71125.0,0.64758551]
[1717751934730,0.2456,71126.0,71125.0,0.64758551]
[1717751934939,0.26416883,71126.0,71125.0,0.64758551]
[1717751935126,0.26416883,71126.0,71125.0,0.66158551]
[1717751935336,0.26416883,71126.0,71125.0,0.9943076]
[1717751935547,0.26416883,71126.0,71125.0,0.59837082]
[1717751935978,0.26416883,71126.0,71125.0,0.61237082]
[1717751937556,0.26416883,71126.0,71125.0,0.65452697]
[1717751938394,0.26416883,71126.0,71125.0,0.61237082]
[1717751938859,0.2456,71126.0,71125.0,0.61237082]
[1717751939099,0.26416883,71126.0,71125.0,0.61237082]
[1717751939524,0.2456,71126.0,71125.0,0.61237877]
[1717751939750,0.2456,71126.0,71125.0,0.46650055]
[1717751939960,0.2456,71126.0,71125.0,0.61237894]
[1717751940177,0.26416883,71126.0,71125.0,0.61237894]
[1717751940380,0.26416883,71126.0,71125.0,0.67562444]
[1717751940381,0.2456,71126.0,71125.0,0.67562444]
[1717751941038,0.26416883,71126.0,71125.0,0.67562444]
[1717751941256,0.2456,71126.0,71125.0,0.98725393]
[1717751942295,0.2456,71126.0,71125.0,0.92400843]
[1717751942645,0.0767,71128.0,71126.0,0.140595]
[1717751942866,0.18476883,71129.0,71127.0,0.50602801]
[1717751943065,0.00086,71132.0,71128.0,0.55203577]
[1717751943269,0.00086,71132.0,71131.0,0.20385429]
[1717751943471,0.00086,71132.0,71131.0,0.66133844]
[1717751943674,0.00086,71132.0,71131.0,0.66748811]
[1717751944316,0.00086,71132.0,71131.0,0.66749786]
[1717751945381,0.00086,71132.0,71131.0,0.66749578]
[1717751946437,0.00086,71132.0,71131.0,0.67449578]
[1717751946646,0.00086,71132.0,71131.0,0.68149578]
[1717751947861,0.01942883,71132.0,71131.0,0.68149578]
[1717751948281,0.01942883,71132.0,71131.0,0.36989002]
[1717751950443,0.00086,71132.0,71131.0,0.36989002]
[1717751951067,0.00086,71132.0,71131.0,0.68149321]
[1717751951268,0.00086,71132.0,71131.0,0.61821625]
[1717751951484,0.00086,71132.0,71131.0,0.72364296]
[1717751951890,0.00086,71132.0,71131.0,0.63931811]
[1717751952095,0.00086,71132.0,71131.0,0.63929829]
[1717751952285,0.00086,71132.0,71131.0,0.72363349]
[1717751952536,0.00086,71132.0,71131.0,0.71663349]
[1717751953007,0.00086,71132.0,71131.0,0.72761946]
[1717751953229,0.00086,71132.0,71131.0,0.4691148]
[1717751953432,0.00086,71132.0,71131.0,0.80370128]
[1717751953669,0.00086,71132.0,71131.0,0.79359925]
[1717751954307,0.00086,71132.0,71131.0,0.81470121]
[1717751955118,0.00086,71132.0,71131.0,0.80370121]
[1717751955446,0.00086,71132.0,71131.0,0.81770116]
[1717751956341,0.00086,71132.0,71131.0,0.89100396]